bitfinex/quotes_ETHUSD_20240822
["timestamp","ask_amount","ask_price","bid_price","bid_amount"]
[1724342460972,3.84218,2602.7,2602.2,6.13203]
[1724342461134,3.84194,2602.9,2602.4,3.84256]
[1724342461496,3.84153,2603.2,2602.6,2.4131]
[1724342461619,3.84122,2603.4,2602.7,0.32582309]
[1724342461820,3.84092,2603.6,2603.0,3.84171]
[1724342461821,3.84099,2603.5,2603.0,3.84171]
[1724342462068,3.84099,2603.5,2602.9,2.4131]
[1724342462231,7.68125,2603.8,2602.9,2.4131]
[1724342462439,7.68125,2603.8,2602.4,3.84257]
[1724342462440,3.84034,2604.0,2603.4,3.84109]
[1724342462619,7.68069,2604.0,2603.4,3.91790131]
[1724342462816,7.838,2604.2,2603.4,1.01723313]
[1724342463015,7.838,2604.2,2603.3,6.25425]
[1724342463272,3.84024,2604.0,2603.3,2.4131]
[1724342463577,3.998,2604.2,2603.3,6.25435]
[1724342463899,3.84005,2604.2,2603.5,3.84086]
[1724342464167,3.84005,2604.2,2603.9,0.00744944]
[1724342464326,0.07042,2604.3,2603.9,2.34094944]
[1724342464721,0.07042,2604.3,2603.9,2.41774818]
[1724342465485,0.07042,2604.3,2603.9,2.34094944]
[1724342465760,0.07042,2604.3,2604.0,3.84015]
[1724342465962,0.07042,2604.3,2604.2,3.83995]
[1724342466165,0.07042,2604.3,2604.2,3.91673485]
[1724342466363,0.07042,2604.3,2604.2,6.41213014]
[1724342466613,0.07042,2604.3,2604.2,10.25208068]
[1724342466917,0.07042,2604.3,2604.2,11.20050807]
[1724342467075,0.07042,2604.3,2604.2,3.52060807]
[1724342467277,0.07042,2604.3,2604.2,2.4954]
[1724342469197,0.07042,2604.3,2604.2,6.33535]
[1724342469415,0.07042,2604.3,2604.2,10.1753]
[1724342470824,0.07042,2604.3,2604.2,14.01525]
[1724342471007,0.07042,2604.3,2604.2,17.01525]
[1724342471208,0.07042,2604.3,2604.2,19.100789]
[1724342471931,3.8378,2605.7,2605.1,6.13383]
[1724342472114,3.83791,2605.6,2605.1,2.2953]
[1724342472296,2.3997,2606.2,2605.1,2.908705]
[1724342472297,3.83821,2605.4,2605.1,2.908705]
[1724342472485,3.998,2605.8,2605.1,2.2953]
[1724342472486,3.83795,2605.6,2605.1,2.2953]
[1724342472685,3.83765,2605.8,2605.1,6.13392]
[1724342472888,3.83782,2605.7,2605.1,6.13392]
[1724342473127,3.83782,2605.7,2605.1,2.2953]
[1724342473426,7.8352,2606.1,2605.1,2.2953]
[1724342473427,3.83791,2605.6,2605.1,2.2953]
[1724342473633,3.998,2605.8,2604.7,2.3165]
[1724342473839,3.83874,2605.1,2604.4,3.83956]
[1724342474125,3.83847,2605.2,2604.6,3.83926]
[1724342474328,3.83847,2605.2,2604.5,0.615606]
[1724342474329,7.67687,2605.3,2604.7,3.83919]
[1724342474527,3.83842,2605.3,2604.7,3.83919]
[1724342474759,3.83848,2605.2,2604.7,3.83919]
[1724342474958,3.998,2605.5,2604.3,6.15621]
[1724342474959,3.83906,2604.9,2604.3,6.15621]
[1724342475252,3.83906,2604.9,2604.4,7.755191]
[1724342475399,3.83865,2605.1,2604.5,3.8395]
[1724342475732,0.55,2605.0,2604.5,3.83941]
[1724342476038,0.55,2605.0,2604.5,7.67883]
[1724342476208,7.67682,2605.3,2604.7,3.83911]
[1724342476403,3.83841,2605.3,2604.7,3.83911]
[1724342476592,3.83841,2605.3,2604.6,4.9987351]
[1724342476593,3.83841,2605.3,2604.9,2.4991]
[1724342476791,3.83812,2605.5,2604.9,2.4991]
[1724342477197,3.83812,2605.5,2604.9,6.33798]
[1724342477393,3.83822,2605.4,2605.0,1.017694]
[1724342477730,3.83822,2605.4,2604.9,2.4991]
[1724342477936,3.83833,2605.3,2604.9,2.4991]
[1724342478298,3.83821,2605.4,2604.9,2.4991]
[1724342478649,3.83812,2605.5,2604.9,6.33799]
[1724342478811,3.83812,2605.5,2605.0,0.00744944]
[1724342479039,3.83819,2605.4,2605.0,1.02588738]
[1724342479602,3.83841,2605.3,2605.0,1.02588738]
[1724342480238,3.83813,2605.5,2605.0,1.02588738]
[1724342480407,3.8384,2605.3,2604.9,2.4991]
[1724342481226,3.83776,2605.7,2605.0,3.83863]
[1724342481749,3.83776,2605.7,2605.1,3.83861]
[1724342481928,7.67559,2605.7,2605.2,0.767724]
[1724342482130,3.83776,2605.7,2605.2,4.606184]
[1724342482653,3.83776,2605.7,2605.3,2.3222]
[1724342484021,7.67563,2605.7,2605.3,2.3222]
[1724342484203,7.6756,2605.7,2605.3,2.3222]
[1724342484734,3.83803,2605.5,2605.2,0.767724]
[1724342484897,6.4032,2605.8,2605.0,13.49003]
[1724342484898,3.83836,2605.3,2605.0,7.33]
[1724342485097,3.998,2605.5,2605.0,7.33]
[1724342485366,3.83862,2605.1,2605.0,7.33]
[1724342486902,8.22724,2605.1,2605.0,7.33]
[1724342488052,0.55,2605.1,2605.0,7.33]
[1724342488365,3.83862,2605.1,2605.0,7.33]
[1724342488570,7.67724,2605.1,2605.0,7.33]
[1724342488893,8.22724,2605.1,2605.0,7.33]
[1724342489486,8.22724,2605.1,2604.4,0.915621]
[1724342489487,3.83893,2604.9,2604.4,0.915621]
[1724342489693,4.38907,2604.8,2604.4,0.915621]
[1724342489903,4.38907,2604.8,2604.2,7.33]
[1724342489904,0.55,2604.8,2604.2,7.33]
[1724342490039,3.83937,2604.6,2604.2,7.33]
[1724342490242,0.55,2604.5,2604.2,7.33]
[1724342490681,4.63282945,2608.1,2604.2,11.16982]
[1724342490682,3.83913,2604.8,2604.2,11.16982]
[1724342490881,0.55,2604.7,2604.2,7.33]
[1724342491052,3.83936,2604.6,2604.2,7.33]
[1724342491284,0.55,2604.5,2603.7,2.3938]
[1724342491485,3.84016,2604.1,2603.5,3.84091]
[1724342491683,3.84021,2604.1,2603.5,1.356471]
[1724342491865,0.55,2604.0,2603.5,5.197371]
[1724342492038,0.55,2604.0,2603.6,3.8408]
[1724342492599,3.83952,2604.5,2603.8,3.84048]
[1724342492805,3.83945,2604.6,2603.9,0.384048]
[1724342493009,3.0,2604.9,2603.8,3.84044]
[1724342493010,3.83975,2604.4,2603.8,3.84044]
[1724342493322,3.83975,2604.4,2603.6,2.3243]
[1724342493323,11.45109,2604.8,2603.6,6.16505]
[1724342493621,3.84009,2604.2,2603.6,2.3243]
[1724342493916,3.84027,2604.0,2603.3,6.16552]
[1724342494046,3.84027,2604.0,2603.3,3.624987]
[1724342494411,0.55,2603.9,2603.3,7.466157]
[1724342494913,0.55,2603.9,2603.4,3.84111]
[1724342495070,0.55,2603.9,2603.3,7.466147]
[1724342495277,0.55,2603.9,2603.4,3.84104]
[1724342495471,0.55,2603.9,2603.5,0.7466027]
[1724342495675,6.15673,2604.6,2603.5,1.79664916]
[1724342496015,6.83926,2604.7,2603.9,3.8403]
[1724342496220,3.8392,2604.8,2604.1,3.84]
[1724342496349,3.8392,2604.8,2604.1,6.2374]
[1724342496554,3.83918,2604.8,2604.1,6.2374]
[1724342496767,3.83937,2604.6,2604.1,3.84]
[1724342497059,3.83937,2604.6,2604.2,0.422403]
[1724342497293,3.83937,2604.6,2603.9,3.84031]
[1724342497497,0.55,2604.5,2603.9,3.84031]
[1724342497695,3.84004,2604.2,2603.6,3.84074]
[1724342497902,0.55,2604.5,2603.8,3.84053]
[1724342497903,0.55,2604.1,2603.8,3.84053]
[1724342498060,0.55,2604.1,2603.8,0.768127]
[1724342498262,0.55,2604.2,2603.8,0.768127]
[1724342498710,3.84004,2604.2,2603.6,3.84082]
[1724342498864,4.3902,2604.1,2603.5,7.0665927]
[1724342499214,3.8398,2604.3,2603.7,3.84059]
[1724342499415,0.55,2604.2,2603.7,3.84059]
[1724342499710,0.55,2604.2,2603.8,3.84053]
[1724342499914,0.55,2604.4,2603.9,0.768112]
[1724342500058,3.83981,2604.3,2603.9,0.768112]
[1724342500255,0.55,2604.4,2603.9,4.608482]
[1724342500872,3.8393,2604.7,2604.1,3.84]
[1724342501221,7.6786,2604.7,2604.1,3.84]
[1724342501510,8.078,2605.1,2604.1,4.31788621]
[1724342501511,3.83901,2604.9,2604.1,4.31788621]
[1724342501713,3.83901,2604.9,2604.1,8.15784621]
[1724342501920,3.83901,2604.9,2604.1,4.31784621]
[1724342502054,3.83901,2604.9,2604.2,1.41163462]
[1724342502452,3.83901,2604.9,2604.2,5.25150462]
[1724342502453,3.83924,2604.7,2604.2,5.25150462]
[1724342503400,3.8393,2604.7,2604.2,3.83985]
[1724342503912,6.60872,2605.1,2604.2,3.83989]
[1724342504191,3.83895,2604.9,2604.2,3.83989]
[1724342504352,3.83906,2604.8,2604.3,3.83966]
[1724342504534,3.83895,2604.9,2604.4,4.607597]
[1724342504738,3.83895,2604.9,2604.5,2.4401]
[1724342506559,2.389,2605.5,2604.7,3.83913]
[1724342506701,2.389,2605.5,2604.6,7.33]
[1724342506904,3.83903,2604.9,2604.7,0.97701]
[1724342507134,3.8385,2605.2,2604.7,1.0537902]
[1724342507314,3.8385,2605.2,2604.8,0.076771]
[1724342507542,3.83883,2605.0,2604.7,1.05378097]
[1724342507862,3.83862,2605.1,2604.7,1.05378097]
[1724342508067,3.83862,2605.1,2604.8,0.53710072]
[1724342508361,3.83877,2605.0,2604.8,0.53710072]
[1724342508668,3.83877,2605.0,2604.5,2.4401]
[1724342508669,3.83879,2605.0,2604.5,2.4401]
[1724342508860,3.83891,2604.9,2604.8,0.00744944]
[1724342509065,7.67782,2604.9,2604.8,0.00744944]
[1724342509283,14.47253,2604.9,2604.8,0.00744944]
[1724342509611,17.47253,2604.9,2604.8,0.00744944]
[1724342509971,21.31144,2604.9,2604.8,0.00744944]
[1724342510513,3.84035,2604.0,2603.5,2.4281]
[1724342510726,3.84035,2604.0,2603.6,1.359911]
[1724342511217,3.84041,2603.9,2603.6,1.359911]
[1724342511451,3.84061,2603.8,2603.6,1.359911]
[1724342511630,2.8911,2603.7,2602.6,2.436]
[1724342511973,3.84121,2603.4,2602.8,3.84193]
[1724342512129,3.84089,2603.6,2602.8,3.84193]
[1724342512467,3.84102,2603.5,2602.9,0.384193]
[1724342512669,3.84102,2603.5,2602.9,4.226023]
[1724342512670,0.55,2603.4,2602.9,4.226023]
[1724342512811,0.55,2603.7,2603.0,6.09881]
[1724342512812,3.84084,2603.6,2603.0,6.09881]
[1724342513190,3.84115,2603.4,2603.0,2.2572]
[1724342513471,7.68213,2603.5,2603.0,2.5213393]
[1724342513628,3.84101,2603.5,2603.0,2.2572]
[1724342513811,4.39078,2603.7,2603.0,6.0989]
[1724342514007,4.39076,2603.7,2603.1,3.84149]
[1724342514264,0.55,2603.7,2603.3,3.84122]
[1724342514422,3.84019,2604.1,2603.1,1.0324583]
[1724342514640,3.83994,2604.3,2603.6,3.84075]
[1724342515145,3.84024,2604.1,2603.4,3.841]
[1724342515363,3.84033,2604.0,2603.4,3.841]
[1724342515513,3.84033,2604.0,2603.5,3.84096]
[1724342516068,3.84033,2604.0,2603.3,3.84114]
[1724342516216,3.84043,2603.9,2603.4,4.834896]
[1724342516412,3.84043,2603.9,2603.4,8.675946]
[1724342516621,3.84024,2604.1,2603.4,8.675946]
[1724342516622,3.84024,2604.1,2603.4,4.834826]
[1724342516827,0.55,2604.0,2603.4,4.834826]
[1724342517032,0.55,2604.0,2603.5,0.4834826]
[1724342517265,0.55,2604.0,2603.6,3.84081]
[1724342517479,3.83996,2604.2,2603.7,2.2579]
[1724342517634,3.84025,2604.0,2603.4,6.19572]
[1724342517964,3.84054,2603.8,2603.4,2.3547]
[1724342518418,3.84025,2604.0,2603.4,7.199544]
[1724342518615,3.8405,2603.9,2603.4,7.199544]
[1724342519116,3.84054,2603.8,2603.4,3.358434]
[1724342519323,0.55,2603.7,2603.0,2.3406]
[1724342519535,3.84113,2603.4,2603.0,2.3406]
[1724342519816,0.55,2603.9,2603.0,2.3406]
[1724342520052,3.55,2604.1,2603.0,2.3406]
[1724342520360,3.84031,2604.0,2603.2,3.84135]
[1724342520557,0.55,2603.9,2603.3,0.384135]
[1724342520713,0.55,2603.9,2603.3,4.225335]
[1724342520714,3.84054,2603.8,2603.3,4.225335]
[1724342521120,3.84094,2603.6,2603.0,6.18221]
[1724342521338,3.84094,2603.6,2603.1,3.84148]
[1724342522058,3.84062,2603.8,2603.2,3.84142]
[1724342522357,3.84085,2603.6,2603.2,3.84141]
[1724342522562,0.55,2603.7,2603.2,3.84141]
[1724342522923,4.39076,2603.7,2603.2,4.843772]
[1724342523233,3.84107,2603.5,2603.0,6.18221]
[1724342523562,4.39081,2603.7,2603.2,3.8414]
[1724342523747,4.39081,2603.7,2603.3,0.38414]
[1724342523950,4.39081,2603.7,2603.2,3.8414]
[1724342524319,0.55,2603.7,2603.2,3.84133]
[1724342524517,0.55,2603.7,2603.0,6.18221]
[1724342524518,3.84033,2604.0,2603.4,3.84098]
[1724342524917,3.8404,2603.9,2603.5,3.84097]
[1724342525166,7.68087,2603.9,2603.4,3.84112]
[1724342525464,3.8404,2603.9,2603.4,0.76823]
[1724342525663,3.8404,2603.9,2603.3,3.84114]
[1724342525865,3.8404,2603.9,2603.0,2.3406]
[1724342525866,0.55,2603.8,2603.1,3.84154]
[1724342526034,3.8409,2603.6,2603.1,3.84154]
[1724342526465,3.8409,2603.6,2603.0,2.3406]
[1724342526466,3.84106,2603.5,2603.0,2.3406]
[1724342526871,4.39126,2603.4,2603.0,2.3406]
[1724342527164,3.84151,2603.2,2602.8,7.33]
[1724342527466,3.84254,2602.5,2602.0,3.8431]
[1724342527673,3.84254,2602.5,2601.5,3.10768617]
[1724342527674,3.84247,2602.5,2601.9,3.84326]
[1724342527826,3.84247,2602.5,2601.9,4.227586]
[1724342528027,3.84247,2602.5,2602.0,3.84317]
[1724342528427,7.82524,2602.7,2602.1,3.84304]
[1724342528631,0.55,2602.6,2602.1,3.84295]
[1724342528856,0.55,2602.6,2602.2,3.84278]
[1724342529022,0.55,2602.6,2602.1,6.5821776]
[1724342529023,3.84195,2602.9,2602.3,3.84275]
[1724342529229,3.84166,2603.1,2602.5,3.84233]
[1724342529538,0.55,2603.0,2602.3,3.84264]
[1724342529738,3.983,2603.0,2602.1,6.15946]
[1724342529966,3.84255,2602.5,2602.1,2.3165]
[1724342530166,3.84255,2602.5,2602.0,6.84311]
[1724342531261,3.84255,2602.5,2601.8,6.15996]
[1724342531456,3.84255,2602.5,2601.9,3.84327]
[1724342531952,7.6851,2602.5,2601.9,3.84327]
[1724342532159,3.84255,2602.5,2601.8,6.15996]
[1724342532481,3.84276,2602.3,2601.8,6.15996]
[1724342532687,3.84276,2602.3,2601.8,10.00337]
[1724342532846,0.55,2602.4,2601.8,10.00337]
[1724342533048,4.39266,2602.4,2601.8,10.00331]
[1724342533274,4.39266,2602.4,2601.8,6.1599]
[1724342533786,4.39266,2602.4,2601.8,6.15989]
[1724342534109,3.84224,2602.7,2601.9,0.52965995]
[1724342534243,3.84196,2602.9,2602.3,3.84267]
[1724342534443,2.2583,2603.2,2602.0,7.68617]
[1724342534786,3.8421,2602.8,2602.2,3.84281]
[1724342534944,3.84225,2602.7,2602.1,7.33]
[1724342535145,7.68425,2602.8,2602.2,3.84288]
[1724342535341,3.8421,2602.8,2602.2,3.84288]
[1724342535866,4.39216,2602.7,2602.2,3.84288]
[1724342536249,3.84239,2602.6,2602.1,8.831615]
[1724342536452,3.84239,2602.6,2602.1,5.344655]
[1724342536883,3.84248,2602.5,2602.0,3.84308]
[1724342537217,3.8426,2602.4,2601.8,25.97991]
[1724342537346,3.84277,2602.3,2601.8,25.97991]
[1724342537551,3.84277,2602.3,2601.8,23.66341]
[1724342537955,2.4937,2602.7,2601.8,19.82]
[1724342538156,3.8432,2602.0,2601.8,19.82]
[1724342538396,7.68603,2602.2,2601.6,3.84378]
[1724342538599,4.39304,2602.1,2601.6,3.84378]
[1724342539074,4.39304,2602.1,2601.5,3.0]
[1724342539075,3.84336,2601.9,2601.5,3.0]
[1724342539397,4.39305,2602.1,2601.5,3.0]
[1724342539567,4.39305,2602.1,2601.5,4.417399]
[1724342539971,3.84332,2602.0,2601.5,3.0]
[1724342540166,3.84332,2602.0,2601.4,11.17395]
[1724342540167,4.39305,2602.1,2601.4,11.17395]
[1724342540394,3.8432,2602.0,2601.4,11.17395]
[1724342540605,3.8432,2602.0,2601.4,15.01795]
[1724342540772,7.68649,2602.0,2601.4,11.17395]
[1724342540976,3.8432,2602.0,2601.4,11.17395]
[1724342541299,3.8432,2602.0,2601.4,13.202944]
[1724342541502,3.84352,2601.8,2601.4,7.33]
[1724342541662,0.55,2602.1,2601.6,3.84375]
[1724342542197,4.39316,2602.1,2601.4,15.01791]
[1724342542695,3.84321,2602.0,2601.5,3.84393]
[1724342542897,3.84321,2602.0,2601.5,5.345716]
[1724342543060,4.39308,2602.1,2601.6,3.84376]
[1724342543259,4.39308,2602.1,2601.5,5.345706]
[1724342543579,4.39308,2602.1,2601.7,3.84362]
[1724342543580,0.55,2602.1,2601.7,3.84362]
[1724342543773,0.55,2602.1,2601.8,3.84341]
[1724342543963,0.55,2602.3,2601.9,3.84326]
[1724342544168,3.84237,2602.6,2602.1,3.84303]
[1724342544399,3.84223,2602.7,2602.1,3.84294]
[1724342544570,3.84223,2602.7,2602.2,3.84282]
[1724342544769,3.84223,2602.7,2602.1,3.84294]
[1724342544963,3.84223,2602.7,2602.1,3.84292]
[1724342545600,3.84231,2602.6,2602.1,7.68588]
[1724342545805,3.84231,2602.6,2602.1,4.41800598]
[1724342546296,3.84225,2602.7,2602.1,4.41800598]
[1724342546606,0.55,2602.6,2602.1,4.41800598]
[1724342546904,3.84248,2602.5,2601.9,7.68644]
[1724342547072,3.84248,2602.5,2601.8,2.4063]
[1724342547073,3.84277,2602.3,2601.8,2.4063]
[1724342547275,0.55,2602.2,2601.8,6.24971]
[1724342547487,0.55,2602.2,2601.6,6.84371]
[1724342547488,4.39292,2602.2,2601.6,3.8437]
[1724342547687,4.39292,2602.2,2601.7,3.84356]
[1724342548707,3.84314,2602.1,2601.6,3.84378]
[1724342548869,4.39292,2602.2,2601.7,3.84361]
[1724342549227,4.39292,2602.2,2601.7,3.84355]
[1724342549407,4.39292,2602.2,2601.7,7.68711]
[1724342549604,4.39292,2602.2,2601.7,3.84355]
[1724342549801,4.39292,2602.2,2601.7,3.84354]
[1724342550304,0.55,2602.2,2601.7,5.04919415]
[1724342550480,4.39291,2602.2,2601.7,5.04919415]
[1724342550683,4.39291,2602.2,2601.7,3.84354]
[1724342551173,3.84271,2602.4,2601.8,3.84348]
[1724342551374,3.84225,2602.7,2602.1,3.84294]
[1724342551601,14.29183,2603.0,2602.3,2.4754]
[1724342551803,3.84195,2602.9,2602.3,6.31804]
[1724342552005,3.8423,2602.7,2602.3,2.4754]
[1724342552205,3.8423,2602.7,2602.2,3.84288]
[1724342552562,3.8427,2602.4,2601.7,6.28103]
[1724342552767,2.3677,2602.6,2601.7,6.28103]
[1724342552768,3.84282,2602.3,2601.8,4.63410787]
[1724342553029,4.39282,2602.3,2601.8,4.63410787]
[1724342553226,4.39282,2602.3,2601.6,5.46974865]
[1724342553432,3.84321,2602.0,2601.5,6.84383]
[1724342553630,3.84321,2602.0,2601.5,7.68769]
[1724342553799,3.84313,2602.1,2601.5,3.84379]
[1724342554000,3.8432,2602.0,2601.5,3.84379]
[1724342554200,0.55,2602.3,2601.4,7.33]
[1724342554201,3.84374,2601.7,2601.4,7.33]
[1724342554400,0.55,2601.6,2601.4,7.33]
[1724342555187,4.39379,2601.6,2601.4,7.33]
[1724342555393,0.55,2601.6,2601.4,7.33]
[1724342556203,5.316,2602.2,2601.5,0.733]
[1724342556204,3.8433,2602.0,2601.5,0.733]
[1724342556403,2.3496,2602.2,2601.4,7.33]
[1724342556404,3.84357,2601.8,2601.4,7.33]
[1724342556605,0.55,2601.7,2601.4,7.33]
[1724342557235,8.23743,2601.7,2601.4,7.33]
[1724342557408,4.39365,2601.7,2601.4,7.33]
[1724342557606,6.72085,2601.7,2601.4,7.33]
[1724342558200,6.72085,2601.7,2601.2,3.84428]
[1724342559545,4.39365,2601.7,2601.2,3.84428]
[1724342559711,3.84309,2602.1,2601.5,3.84385]
[1724342559920,2.4304,2602.3,2601.3,6.1559]
[1724342560095,3.84262,2602.4,2601.9,3.84326]
[1724342560719,3.84248,2602.5,2601.9,3.84326]
[1724342560919,3.84248,2602.5,2602.0,3.84319]
[1724342561319,7.68536,2602.4,2601.9,4.456226]
[1724342561941,3.84241,2602.6,2602.0,3.84319]
[1724342562261,3.84253,2602.5,2602.0,3.84319]
[1724342562643,0.55,2602.4,2601.9,0.612896]
[1724342562958,3.84188,2602.9,2602.4,3.8425]
[1724342563117,3.8418,2603.0,2602.4,3.91934429]
[1724342563311,3.84201,2602.8,2602.3,2.4882]
[1724342564366,3.84226,2602.7,2602.3,2.4882]
[1724342564580,3.84201,2602.8,2602.2,3.84279]
[1724342564757,3.84201,2602.8,2602.3,0.384279]
[1724342565237,7.68416,2602.8,2602.3,0.384279]
[1724342565455,3.84229,2602.7,2602.0,10.6656766]
[1724342565630,3.84249,2602.5,2602.0,2.9795066]
[1724342565837,7.68505,2602.5,2602.0,2.9795066]
[1724342566037,3.84249,2602.5,2601.9,7.68658]
[1724342566558,3.84249,2602.5,2601.9,7.68652]
[1724342566723,3.84249,2602.5,2601.9,3.84326]
[1724342567055,0.55,2602.6,2601.7,3.84355]
[1724342567056,3.84276,2602.3,2601.7,6.20745]
[1724342567257,3.84276,2602.3,2601.8,3.84347]
[1724342567755,3.84276,2602.3,2601.7,7.861195]
[1724342567756,3.84252,2602.5,2601.9,3.84332]
[1724342568054,0.55,2602.4,2601.9,3.84324]
[1724342569043,4.39269,2602.4,2601.9,3.84324]
[1724342569588,3.84277,2602.3,2601.7,7.861135]
[1724342569788,4.39297,2602.2,2601.7,7.861135]
[1724342569923,3.84306,2602.1,2601.6,10.33]
[1724342570123,3.84306,2602.1,2601.7,3.0]
[1724342570333,0.55,2602.0,2601.6,6.84377]
[1724342571048,0.55,2602.0,2601.7,3.84362]
[1724342571363,0.55,2602.2,2601.7,7.68717]
[1724342571566,7.68517,2602.5,2601.9,3.84324]
[1724342571803,0.55,2602.4,2601.9,3.84324]
[1724342572064,0.55,2602.4,2601.7,3.84353]
[1724342572065,4.3926,2602.4,2601.7,3.84353]
[1724342572360,3.84297,2602.2,2601.7,3.84353]
[1724342572566,3.84313,2602.1,2601.5,4.20456688]
[1724342572749,4.39328,2602.0,2601.5,3.8438]
[1724342573072,0.55,2602.0,2601.5,3.84392]
[1724342573370,2.4352,2602.2,2601.7,3.84351]
[1724342573543,0.55,2602.1,2601.7,3.84351]
[1724342573992,0.55,2602.1,2601.8,3.84349]
[1724342574139,0.55,2602.2,2601.8,3.84349]
[1724342574761,4.3929,2602.2,2601.7,3.84351]
[1724342575054,4.3929,2602.2,2601.9,3.84327]
[1724342575055,0.55,2602.2,2601.9,3.84327]
[1724342575271,3.84256,2602.5,2602.0,3.84314]
[1724342575587,0.55,2602.4,2601.9,7.6865]
[1724342575794,0.55,2602.4,2602.0,3.84317]
[1724342576090,0.55,2602.4,2602.1,3.84303]
[1724342576485,0.55,2602.4,2602.1,3.84296]
[1724342576688,3.84234,2602.6,2602.1,3.84296]
[1724342576689,0.55,2602.5,2602.1,3.84296]
[1724342576892,3.8421,2602.8,2602.1,3.84296]
[1724342577199,3.84217,2602.7,2602.2,3.84288]
[1724342577493,3.84233,2602.6,2602.1,4.328311]
[1724342578290,3.8421,2602.8,2602.1,4.328301]
[1724342578492,3.84225,2602.7,2602.1,8.171261]
[1724342578787,3.84225,2602.7,2602.2,0.9181811]
[1724342579150,3.8421,2602.8,2602.2,4.7609811]
[1724342579391,3.84123,2603.4,2602.6,2.437]
[1724342579596,5.316,2603.8,2602.6,0.45280288]
[1724342579597,3.84063,2603.8,2602.6,0.45280288]
[1724342579799,3.84063,2603.8,2603.2,3.84141]
[1724342580098,6.61,2604.2,2603.5,3.84097]
[1724342580447,6.61,2604.2,2603.5,7.68183]
[1724342580623,6.61,2604.2,2603.6,6.139]
[1724342580933,6.61,2604.2,2603.6,2.2982]
[1724342581235,3.8401,2604.1,2603.6,2.2982]
[1724342581606,3.84031,2604.0,2603.6,2.2982]
[1724342581942,3.84031,2604.0,2603.3,2.2982]
[1724342582143,3.84057,2603.8,2603.3,2.2982]
[1724342582435,3.84057,2603.8,2603.0,2.3979]
[1724342582608,3.84057,2603.8,2603.1,3.84155]
[1724342582609,0.55,2603.7,2603.1,3.84155]
[1724342583008,3.84088,2603.6,2603.0,3.021872]
[1724342583223,3.84088,2603.6,2603.0,2.3979]
[1724342583623,3.84028,2604.0,2603.1,3.91832748]
[1724342583809,0.55,2603.9,2603.4,2.3979]
[1724342584006,3.84028,2604.0,2603.4,6.239]
[1724342584210,6.61,2604.2,2603.5,3.84089]
[1724342584446,3.83972,2604.4,2603.5,3.8409]
[1724342584654,3.83972,2604.4,2603.7,3.84058]
[1724342585206,3.83972,2604.4,2603.5,3.84088]
[1724342585428,3.84005,2604.2,2603.5,4.848878]
[1724342585637,3.84005,2604.2,2603.5,1.007998]
[1724342585638,3.84027,2604.0,2603.5,1.007998]
[1724342585852,3.84027,2604.0,2603.4,2.3979]
[1724342586947,3.84054,2603.8,2603.4,2.3979]
[1724342587111,3.84096,2603.6,2603.2,7.24]
[1724342587432,3.84058,2603.8,2603.2,7.24]
[1724342587433,4.39078,2603.7,2603.2,7.24]
[1724342588272,0.55,2603.7,2603.2,7.24]
[1724342588467,3.84031,2604.0,2603.3,5.562773]
[1724342588668,3.83975,2604.4,2603.7,3.84057]
[1724342589177,3.83996,2604.2,2603.6,2.3563]
[1724342589501,3.83996,2604.2,2603.6,3.700016]
[1724342589652,3.84034,2604.0,2603.6,2.3563]
[1724342589857,3.8404,2603.9,2603.6,2.3563]
[1724342590090,3.8404,2603.9,2603.5,7.24]
[1724342590091,3.84034,2604.0,2603.5,7.24]
[1724342590292,3.84055,2603.8,2603.5,7.24]
[1724342590491,3.84055,2603.8,2603.3,4.047823]
[1724342590695,3.84072,2603.7,2603.3,4.047823]
[1724342590903,4.3905,2603.9,2603.3,7.889003]
[1724342591084,3.8401,2604.1,2603.5,3.84097]
[1724342591290,3.83996,2604.2,2603.6,3.8408]
[1724342591495,3.83996,2604.2,2603.7,3.84066]
[1724342591722,3.8397,2604.4,2603.7,6.16686]
[1724342591999,3.83988,2604.3,2603.7,7.167636]
[1724342592309,3.83988,2604.3,2603.7,7.167586]
[1724342592458,3.8397,2604.4,2603.7,7.167586]
[1724342592459,3.83997,2604.2,2603.7,7.167586]
[1724342592794,7.68,2604.2,2603.7,7.167586]
[1724342592959,3.83997,2604.2,2603.7,7.167586]
[1724342593617,3.83974,2604.4,2603.8,0.7167586]
[1724342593914,3.83943,2604.6,2603.9,3.84035]
[1724342594108,2.2926,2604.9,2604.2,2.3262]
[1724342594109,7.6783,2604.8,2604.2,2.3262]
[1724342594434,3.83911,2604.8,2604.2,2.3262]
[1724342594604,3.83916,2604.8,2604.2,2.3262]
[1724342594759,3.83923,2604.7,2604.2,6.16614]
[1724342594954,3.83923,2604.7,2604.2,2.3262]
[1724342595273,3.83916,2604.8,2604.3,1.000626]
[1724342595474,3.83929,2604.7,2604.3,1.000626]
[1724342596083,11.5795,2605.2,2604.2,2.3262]
[1724342596084,3.839,2604.9,2604.2,2.3262]
[1724342596395,3.83924,2604.7,2604.2,2.3262]
[1724342596599,7.67859,2604.7,2604.2,2.3262]
[1724342596904,3.83937,2604.6,2604.2,2.3262]
[1724342597106,3.83952,2604.5,2604.2,2.3262]
[1724342597464,3.83958,2604.5,2603.9,6.31457]